fUST/lending_fUST_20250314
["ID","MTS","AMOUNT","RATE_DAILY","PERIOD"]
[356121976,1741914656477,-793.02,0.00014246,2]
[356121978,1741914656486,-2827.88,0.00014246,2]
[356121980,1741914656496,-500.0,0.00014246,2]
[356121982,1741914656505,-500.0,0.00014246,2]
[356121984,1741914656515,-500.0,0.00014246,2]
[356121986,1741914656525,-708.29,0.00014246,2]
[356121988,1741914656535,-1000.86,0.00014246,2]
[356121990,1741914656544,-500.0,0.00014246,2]
[356121992,1741914656554,-500.0,0.00014246,2]
[356121994,1741914656564,-726.4,0.00014246,2]
[356121996,1741914656575,-500.0,0.00014246,2]
[356121998,1741914656588,-6677.22469894,0.00014246,2]
[356122169,1741915370709,-193.53278422,0.00011622,2]
[356122170,1741915370732,-500.0,0.00011622,2]
[356122171,1741915370756,-500.0,0.00011622,2]
[356122172,1741915370779,-500.0,0.00011622,2]
[356122173,1741915370801,-500.0,0.00011622,2]
[356122174,1741915370822,-155.91623984,0.00011622,2]
[356122175,1741915370845,-500.0,0.00011622,2]
[356122176,1741915370866,-500.0,0.00011622,2]
[356122177,1741915370888,-500.0,0.00011622,2]
[356122178,1741915370910,-500.0,0.00011622,2]
[356122179,1741915370934,-500.0,0.00011622,2]
[356122180,1741915370955,-24900.0,0.00011623,2]
[356122181,1741915370977,-256.08362634,0.00011953,2]
[356122182,1741915371000,-500.0,0.00011953,2]
[356122183,1741915371022,-500.0,0.00011953,2]
[356122184,1741915371046,-182.16946748,0.00011953,2]
[356122185,1741915371067,-500.0,0.00011953,2]
[356122186,1741915371089,-500.0,0.00011953,2]
[356122187,1741915371110,-298.9247879,0.00011953,2]
[356122188,1741915371132,-500.0,0.00011953,2]
[356122189,1741915371153,-300.0,0.00011953,2]
[356122190,1741915371177,-11713.37309422,0.00011954,2]
[356122210,1741915611183,-221.44561394,0.00011727,2]
[356122249,1741915832386,-1598.53391296,0.00011727,2]
[356122251,1741915832397,-517.32402665,0.00011731,2]
[356122253,1741915832407,-300.0,0.00011731,2]
[356122254,1741915832416,-10000.0,0.00011732,2]
[356122255,1741915832425,-14193.496481,0.00011955,3]
[356122256,1741915832435,-250.0,0.00011956,2]
[356122257,1741915832445,-1216.68882193,0.00012313,2]
[356122258,1741915832454,-871.06381909,0.00012314,2]
[356122259,1741915832504,-179.65185269,0.00011955,2]
[356122260,1741915832514,-500.0,0.00011955,2]
[356122261,1741915832524,-500.0,0.00011955,2]
[356122262,1741915832533,-4465.01039795,0.00012314,2]
[356122263,1741915832542,-4447.73888876,0.00012414,2]
[356122264,1741915832553,-182.339054,0.00012504,2]
[356122265,1741915832562,-182.339054,0.0001266,2]
[356122266,1741915832572,-500.0,0.00012667,2]
[356122268,1741915832581,-182.339054,0.00012817,2]
[356122270,1741915832590,-678.51141923,0.000129,2]
[356122272,1741915832599,-182.339054,0.00012973,2]
[356122273,1741915832609,-14248.76722088,0.00013,2]
[356122274,1741915832618,-14248.76722084,0.00013,2]
[356122275,1741915832627,-14248.76722084,0.00013,2]
[356122276,1741915832637,-14248.76722084,0.00013,2]
[356122277,1741915832647,-14248.76722084,0.00013003,2]
[356122278,1741915832656,-678.51141923,0.0001304,2]
[356122279,1741915832666,-182.339054,0.00013129,2]
[356122280,1741915832675,-678.51141923,0.0001318,2]
[356122281,1741915832684,-11568.76662402,0.00013279,2]
[356122282,1741915832762,-427.698,0.00013279,2]
[356122283,1741915832826,-419.32996093,0.00011955,2]
[356122284,1741915832836,-2252.30259682,0.00013279,2]
[356122285,1741915832846,-678.51141923,0.00013319,2]
[356122286,1741915832855,-678.51141923,0.00013459,2]
[356122287,1741915832864,-96933.50165489,0.00013498,2]
[356122353,1741915846579,-500.0,0.00011955,2]
[356122354,1741915846589,-187.34108155,0.00011955,2]
[356122355,1741915846600,-500.0,0.00013164,2]
[356122356,1741915846610,-555.38107907,0.00013498,2]
[356122358,1741915846733,-124511.11726604,0.00013498,2]
[356122359,1741915846744,-27268.0425204,0.0001355,2]
[356122360,1741915846753,-14248.76722084,0.00013555,2]
[356122361,1741915846763,-3500.0,0.00013559,2]
[356122362,1741915846773,-3000.0,0.00013599,2]
[356122363,1741915846785,-500.0,0.00013673,2]
[356122364,1741915846795,-500.0,0.00013673,2]
[356122365,1741915846805,-500.0,0.00013673,2]
[356122366,1741915846814,-500.0,0.00013673,2]
[356122367,1741915846823,-500.0,0.00013673,2]
[356122368,1741915846833,-500.0,0.00013673,2]
[356122369,1741915846843,-500.0,0.00013673,2]
[356122370,1741915846853,-500.0,0.00013673,2]
[356122371,1741915846862,-500.0,0.00013673,2]
[356122372,1741915846872,-500.92560493,0.00013673,2]
[356122373,1741915846881,-500.0,0.00013673,2]
[356122374,1741915846891,-500.0,0.00013673,2]
[356122375,1741915846901,-500.0,0.00013673,2]
[356122376,1741915846912,-500.0,0.00013673,2]
[356122377,1741915846921,-500.0,0.00013673,2]
[356122378,1741915846932,-500.0,0.00013673,2]
[356122379,1741915846941,-500.0,0.00013673,2]
[356122380,1741915846951,-500.0,0.00013673,2]
[356122381,1741915846960,-500.0,0.00013673,2]
[356122382,1741915846970,-500.0,0.00013673,2]
[356122383,1741915846980,-500.0,0.00013673,2]
[356122384,1741915846990,-500.0,0.00013673,2]
[356122385,1741915847000,-1000.0,0.00013697,2]
[356122386,1741915847010,-1000.0,0.00013697,2]
[356122387,1741915847020,-1000.0,0.00013697,2]
[356122388,1741915847030,-500.0,0.00013698,2]
[356122389,1741915847041,-674.92,0.00013698,2]
[356122390,1741915847051,-500.0,0.00013698,2]
[356122391,1741915847060,-500.0,0.00013698,2]
[356122392,1741915847071,-500.0,0.00013698,2]
[356122393,1741915847080,-500.0,0.00013698,2]
[356122394,1741915847091,-500.0,0.00013698,2]
[356122395,1741915847101,-500.0,0.00013698,2]
[356122396,1741915847111,-500.0,0.00013698,2]
[356122397,1741915847121,-566.96,0.00013698,2]
[356122398,1741915847130,-350.0,0.00013698,2]
[356122399,1741915847140,-430.52631929,0.00013698,2]
[356122400,1741915847150,-500.0,0.00013698,2]
[356122401,1741915847161,-500.0,0.00013698,2]
[356122402,1741915847171,-531.89,0.00013698,2]
[356122403,1741915847180,-252.74692972,0.00013698,2]
[356122404,1741915847190,-500.0,0.00013698,2]
[356122405,1741915847199,-500.0,0.00013698,2]
[356122406,1741915847209,-500.0,0.00013698,2]
[356122407,1741915847219,-500.0,0.00013698,2]
[356122408,1741915847229,-500.0,0.00013698,2]
[356122409,1741915847239,-500.0,0.00013698,2]
[356122410,1741915847249,-636.8937899,0.00013698,2]
[356122411,1741915847259,-500.0,0.00013698,2]
[356122412,1741915847269,-500.0,0.00013698,2]
[356122413,1741915847279,-559.52,0.00013698,2]
[356122414,1741915847288,-500.0,0.00013698,2]
[356122415,1741915847298,-155.59321459,0.00013698,2]
[356122416,1741915847309,-500.0,0.00013698,2]
[356122417,1741915847320,-500.0,0.00013698,2]
[356122418,1741915847329,-438.60515456,0.00013698,2]
[356122419,1741915847338,-912.54,0.00013698,2]
[356122420,1741915847348,-500.0,0.00013698,2]
[356122421,1741915847358,-507.39575288,0.00013698,2]
[356122422,1741915847368,-500.0,0.00013698,2]
[356122423,1741915847379,-658.2,0.00013698,2]
[356122424,1741915847389,-500.0,0.00013698,2]
[356122425,1741915847399,-500.0,0.00013698,2]
[356122426,1741915847409,-500.0,0.00013698,2]
[356122427,1741915847419,-564.51,0.00013698,2]
[356122428,1741915847428,-200.48,0.00013698,2]
[356122429,1741915847438,-500.0,0.00013698,2]
[356122430,1741915847447,-500.0,0.00013698,2]
[356122431,1741915847457,-500.0,0.00013698,2]
[356122432,1741915847467,-500.0,0.00013698,2]
[356122433,1741915847477,-151.0,0.00013698,2]
[356122434,1741915847486,-151.0,0.00013698,2]
[356122435,1741915847496,-151.0,0.00013698,2]
[356122436,1741915847505,-500.0,0.00013698,2]
[356122437,1741915847516,-500.0,0.00013698,2]
[356122438,1741915847526,-788.65,0.00013698,2]
[356122439,1741915847536,-664.68,0.00013698,2]
[356122440,1741915847546,-500.0,0.00013698,2]
[356122441,1741915847555,-500.0,0.00013698,2]
[356122442,1741915847565,-500.0,0.00013698,2]
[356122443,1741915847575,-502.82,0.00013698,2]
[356122444,1741915847584,-508.22047759,0.00013698,2]
[356122445,1741915847595,-500.0,0.00013698,2]
[356122446,1741915847604,-500.0,0.00013698,2]
[356122447,1741915847614,-500.0,0.00013698,2]
[356122448,1741915847624,-538.18,0.00013698,2]
[356122449,1741915847633,-500.0,0.00013698,2]
[356122450,1741915847643,-500.0,0.00013698,2]
[356122451,1741915847653,-500.0,0.00013698,2]
[356122452,1741915847662,-500.0,0.00013698,2]
[356122453,1741915847671,-537.15,0.00013698,2]
[356122454,1741915847681,-500.0,0.00013698,2]
[356122455,1741915847690,-555.67,0.00013698,2]
[356122456,1741915847699,-516.63,0.00013698,2]
[356122457,1741915847709,-500.0,0.00013698,2]
[356122458,1741915847718,-500.0,0.00013698,2]
[356122459,1741915847727,-500.0,0.00013698,2]
[356122460,1741915847737,-151.0,0.00013698,2]
[356122461,1741915847746,-179.00984,0.00013698,2]
[356122462,1741915847756,-500.0,0.00013698,2]
[356122463,1741915847766,-825.27,0.00013698,2]
[356122464,1741915847776,-500.0,0.00013698,2]
[356122465,1741915847785,-500.0,0.00013698,2]
[356122466,1741915847795,-525.23447383,0.00013698,2]
[356122467,1741915847804,-500.0,0.00013698,2]
[356122468,1741915847814,-500.0,0.00013698,2]
[356122469,1741915847823,-500.0,0.00013698,2]
[356122470,1741915847833,-500.0,0.00013698,2]
[356122471,1741915847843,-500.0,0.00013698,2]
[356122472,1741915847852,-500.0,0.00013698,2]
[356122473,1741915847862,-500.0,0.00013698,2]
[356122474,1741915847872,-812.08,0.00013698,2]
[356122475,1741915847881,-500.0,0.00013698,2]
[356122476,1741915847890,-500.0,0.00013698,2]
[356122477,1741915847900,-500.0,0.00013698,2]
[356122478,1741915847909,-500.0,0.00013698,2]
[356122479,1741915847919,-500.0,0.00013698,2]
[356122480,1741915847929,-500.0,0.00013698,2]
[356122481,1741915847939,-500.0,0.00013698,2]
[356122482,1741915847948,-500.0,0.00013698,2]
[356122483,1741915847958,-737.7,0.00013698,2]
[356122484,1741915847968,-500.0,0.00013698,2]
[356122485,1741915847977,-500.0,0.00013698,2]
[356122486,1741915847987,-500.0,0.00013698,2]
[356122487,1741915847996,-500.0,0.00013698,2]
[356122488,1741915848007,-833.71,0.00013698,2]
[356122489,1741915848017,-500.0,0.00013698,2]
[356122490,1741915848027,-593.40000799,0.00013698,2]
[356122491,1741915848037,-500.0,0.00013698,2]
[356122492,1741915848048,-500.0,0.00013698,2]
[356122493,1741915848058,-500.0,0.00013698,2]
[356122494,1741915848068,-500.0,0.00013698,2]
[356122495,1741915848078,-298.164719,0.00013698,2]
[356122496,1741915848088,-298.164719,0.00013698,2]
[356122497,1741915848098,-500.0,0.00013698,2]
[356122498,1741915848108,-500.0,0.00013698,2]
[356122499,1741915848117,-298.164719,0.00013698,2]
[356122500,1741915848127,-298.164719,0.00013698,2]
[356122501,1741915848137,-500.0,0.00013698,2]
[356122502,1741915848147,-500.0,0.00013698,2]
[356122503,1741915848156,-249.59934652,0.00013698,2]
[356122504,1741915848166,-500.0,0.00013698,2]
[356122505,1741915848175,-500.0,0.00013698,2]
[356122506,1741915848184,-500.0,0.00013698,2]
[356122507,1741915848194,-500.0,0.00013698,2]
[356122508,1741915848203,-1097.15,0.00013698,2]
[356122509,1741915848213,-500.0,0.00013698,2]
[356122510,1741915848223,-500.0,0.00013698,2]
[356122511,1741915848233,-500.0,0.00013698,2]
[356122512,1741915848243,-500.0,0.00013698,2]
[356122513,1741915848252,-500.0,0.00013698,2]
[356122514,1741915848263,-500.0,0.00013698,2]
[356122515,1741915848273,-211.496039,0.00013698,2]
[356122516,1741915848282,-766.18,0.00013698,2]
[356122517,1741915848292,-211.496039,0.00013698,2]
[356122518,1741915848302,-500.0,0.00013698,2]
[356122519,1741915848314,-211.496039,0.00013698,2]
[356122520,1741915848324,-211.496039,0.00013698,2]
[356122521,1741915848334,-886.13,0.00013698,2]
[356122522,1741915848343,-500.0,0.00013698,2]
[356122523,1741915848354,-1005.8,0.00013698,2]
[356122524,1741915848363,-500.0,0.00013698,2]
[356122525,1741915848373,-500.0,0.00013698,2]
[356122526,1741915848383,-500.0,0.00013698,2]
[356122527,1741915848392,-500.0,0.00013698,2]
[356122528,1741915848403,-520.86,0.00013698,2]
[356122529,1741915848412,-500.0,0.00013698,2]
[356122530,1741915848422,-500.0,0.00013698,2]
[356122531,1741915848431,-500.0,0.00013698,2]
[356122532,1741915848441,-500.0,0.00013698,2]
[356122533,1741915848451,-500.0,0.00013698,2]
[356122534,1741915848460,-500.0,0.00013698,2]
[356122535,1741915848470,-500.0,0.00013698,2]
[356122536,1741915848480,-500.0,0.00013698,2]
[356122537,1741915848489,-162.297762,0.00013698,2]
[356122538,1741915848499,-162.297762,0.00013698,2]
[356122539,1741915848509,-162.297762,0.00013698,2]
[356122540,1741915848519,-162.297762,0.00013698,2]
[356122541,1741915848528,-500.0,0.00013698,2]
[356122542,1741915848538,-500.0,0.00013698,2]
[356122543,1741915848547,-500.0,0.00013698,2]
[356122544,1741915848557,-500.0,0.00013698,2]
[356122545,1741915848567,-500.0,0.00013698,2]
[356122546,1741915848577,-540.34,0.00013698,2]
[356122547,1741915848587,-500.0,0.00013698,2]
[356122548,1741915848598,-500.0,0.00013698,2]
[356122549,1741915848607,-192.80948839,0.00013698,2]
[356122550,1741915848616,-213.795396,0.00013698,2]
[356122551,1741915848626,-500.0,0.00013698,2]
[356122552,1741915848636,-213.795396,0.00013698,2]
[356122553,1741915848646,-500.0,0.00013698,2]
[356122554,1741915848655,-878.56,0.00013698,2]
[356122555,1741915848666,-544.39,0.00013698,2]
[356122556,1741915848675,-789.16,0.00013698,2]
[356122557,1741915848684,-500.0,0.00013698,2]
[356122558,1741915848694,-734.12,0.00013698,2]
[356122559,1741915848704,-500.0,0.00013698,2]
[356122560,1741915848717,-500.0,0.00013698,2]
[356122561,1741915848730,-500.0,0.00013698,2]
[356122562,1741915848744,-500.0,0.00013698,2]
[356122563,1741915848758,-514.57,0.00013698,2]
[356122564,1741915848772,-837.4,0.00013698,2]
[356122565,1741915848785,-601.39,0.00013698,2]
[356122566,1741915848797,-500.0,0.00013698,2]
[356122567,1741915848807,-528.72,0.00013698,2]
[356122568,1741915848819,-500.0,0.00013698,2]
[356122569,1741915848832,-550.72,0.00013698,2]
[356122570,1741915848844,-500.0,0.00013698,2]
[356122571,1741915848858,-500.0,0.00013698,2]
[356122572,1741915848870,-500.0,0.00013698,2]
[356122573,1741915848883,-500.0,0.00013698,2]
[356122574,1741915848896,-500.0,0.00013698,2]
[356122575,1741915848909,-500.0,0.00013698,2]
[356122576,1741915848922,-500.0,0.00013698,2]
[356122577,1741915848934,-500.0,0.00013698,2]
[356122578,1741915848947,-500.0,0.00013698,2]
[356122579,1741915848960,-500.0,0.00013698,2]
[356122580,1741915848973,-500.0,0.00013698,2]
[356122581,1741915848986,-500.0,0.00013698,2]
[356122582,1741915849000,-500.0,0.00013698,2]
[356122583,1741915849013,-408.81310278,0.00013698,2]
[356122584,1741915849024,-500.0,0.00013698,2]
[356122585,1741915849035,-500.0,0.00013698,2]
[356122586,1741915849048,-500.0,0.00013698,2]
[356122587,1741915849061,-823.5,0.00013698,2]
[356122588,1741915849074,-500.0,0.00013698,2]
[356122589,1741915849086,-1310.41,0.00013698,2]
[356122590,1741915849099,-1208.35,0.00013698,2]
[356122591,1741915849113,-500.0,0.00013698,2]
[356122592,1741915849125,-984.93,0.00013698,2]
[356122593,1741915849137,-500.0,0.00013698,2]
[356122594,1741915849149,-500.0,0.00013698,2]
[356122595,1741915849162,-500.0,0.00013698,2]
[356122596,1741915849174,-1696.73,0.00013698,2]
[356122597,1741915849184,-500.0,0.00013698,2]
[356122598,1741915849196,-500.0,0.00013698,2]
[356122599,1741915849208,-5663.12,0.00013698,2]
[356122600,1741915849220,-500.0,0.00013698,2]
[356122601,1741915849231,-500.0,0.00013698,2]
[356122602,1741915849243,-500.0,0.00013698,2]
[356122603,1741915849256,-500.0,0.00013698,2]
[356122604,1741915849269,-1123.41,0.00013698,2]
[356122605,1741915849282,-500.0,0.00013698,2]
[356122606,1741915849294,-633.86,0.00013698,2]
[356122607,1741915849311,-500.0,0.00013698,2]
[356122608,1741915849324,-3831.65,0.00013698,2]
[356122609,1741915849338,-151.0,0.00013698,2]
[356122610,1741915849352,-151.0,0.00013698,2]
[356122611,1741915849365,-866.4,0.00013698,2]
[356122612,1741915849377,-500.0,0.00013698,2]
[356122613,1741915849392,-500.0,0.00013698,2]
[356122614,1741915849404,-500.0,0.00013698,2]
[356122615,1741915849415,-2408.37,0.00013698,2]
[356122616,1741915849426,-500.0,0.00013698,2]
[356122617,1741915849437,-500.0,0.00013698,2]
[356122618,1741915849448,-500.0,0.00013698,2]
[356122619,1741915849459,-500.0,0.00013698,2]
[356122620,1741915849470,-3310.69,0.00013698,2]
[356122621,1741915849483,-1679.18,0.00013698,2]
[356122622,1741915849495,-851.92,0.00013698,2]
[356122623,1741915849509,-500.0,0.00013698,2]
[356122624,1741915849520,-500.0,0.00013698,2]
[356122625,1741915849533,-500.0,0.00013698,2]
[356122626,1741915849544,-500.0,0.00013698,2]
[356122627,1741915849555,-500.0,0.00013698,2]
[356122628,1741915849566,-500.0,0.00013698,2]
[356122629,1741915849577,-4683.41,0.00013698,2]
[356122630,1741915849589,-2272.67,0.00013698,2]
[356122631,1741915849600,-151.0,0.00013698,2]
[356122632,1741915849613,-151.0,0.00013698,2]
[356122633,1741915849626,-151.0,0.00013698,2]
[356122634,1741915849636,-296.784858,0.00013698,2]
[356122635,1741915849647,-2388.67,0.00013698,2]
[356122636,1741915849658,-1023.83,0.00013698,2]
[356122637,1741915849670,-500.0,0.00013698,2]
[356122638,1741915849680,-500.0,0.00013698,2]
[356122639,1741915849691,-500.0,0.00013698,2]
[356122640,1741915849702,-500.0,0.00013698,2]
[356122641,1741915849714,-500.0,0.00013698,2]
[356122642,1741915849725,-500.0,0.00013698,2]
[356122643,1741915849736,-1294.35,0.00013698,2]
[356122644,1741915849747,-500.0,0.00013698,2]
[356122645,1741915849758,-612.86,0.00013698,2]
[356122646,1741915849770,-500.0,0.00013698,2]
[356122647,1741915849781,-1278.96,0.00013698,2]
[356122648,1741915849792,-500.0,0.00013698,2]
[356122649,1741915849803,-10696.16,0.00013698,2]
[356122650,1741915849814,-842.19,0.00013698,2]
[356122651,1741915849825,-500.0,0.00013698,2]
[356122652,1741915849836,-1007.13,0.00013698,2]
[356122653,1741915849848,-817.84,0.00013698,2]
[356122654,1741915849859,-20397.53,0.00013698,2]
[356122655,1741915849870,-500.0,0.00013698,2]
[356122656,1741915849885,-500.0,0.00013698,2]
[356122657,1741915849897,-4548.95,0.00013698,2]
[356122658,1741915849908,-500.0,0.00013698,2]
[356122659,1741915849920,-875.75,0.00013698,2]
[356122660,1741915849931,-500.0,0.00013698,2]
[356122661,1741915849942,-500.0,0.00013698,2]
[356122662,1741915849954,-151.0,0.00013698,2]
[356122663,1741915849966,-151.0,0.00013698,2]
[356122664,1741915849977,-500.0,0.00013698,2]
[356122665,1741915849989,-500.0,0.00013698,2]
[356122666,1741915850001,-1554.2,0.00013698,2]
[356122667,1741915850012,-500.0,0.00013698,2]
[356122668,1741915850024,-869.42,0.00013698,2]
[356122669,1741915850037,-500.0,0.00013698,2]
[356122670,1741915850048,-287.64053875,0.00013698,2]
[356122671,1741915850059,-4407.93,0.00013698,2]
[356122672,1741915850071,-859.99,0.00013698,2]
[356122673,1741915850083,-728.88,0.00013698,2]
[356122674,1741915850095,-500.0,0.00013698,2]
[356122675,1741915850106,-635.6,0.00013698,2]
[356122676,1741915850118,-500.0,0.00013698,2]
[356122677,1741915850130,-1848.83,0.00013698,2]
[356122678,1741915850142,-2343.8,0.00013698,2]
[356122679,1741915850153,-478.92435137,0.00013698,2]
[356122680,1741915850165,-1437.16,0.00013698,2]
[356122681,1741915850176,-554.22,0.00013698,2]
[356122682,1741915850187,-1121.34,0.00013698,2]
[356122683,1741915850199,-500.0,0.00013698,2]
[356122684,1741915850210,-500.0,0.00013698,2]
[356122685,1741915850220,-284229.22,0.00013698,2]
[356122686,1741915850231,-500.0,0.00013698,2]
[356122687,1741915850242,-1054.65,0.00013698,2]
[356122688,1741915850254,-500.0,0.00013698,2]
[356122689,1741915850266,-500.0,0.00013698,2]
[356122690,1741915850277,-565.22,0.00013698,2]
[356122691,1741915850288,-6862.91,0.00013698,2]
[356122692,1741915850299,-500.0,0.00013698,2]
[356122693,1741915850314,-500.0,0.00013698,2]
[356122694,1741915850325,-500.0,0.00013698,2]
[356122695,1741915850336,-500.0,0.00013698,2]
[356122696,1741915850347,-721.76,0.00013698,2]
[356122697,1741915850359,-938.4410702,0.00013698,2]
[356122698,1741915850383,-1489.6689298,0.00013698,2]
[356122699,1741915850395,-515.04347146,0.00013698,2]
[356122701,1741916198162,275.63,0.00014001,30]
[356122702,1741916816348,-214.95703034,0.00011,6]
[356122738,1741917032574,-203.7013245,0.00010906,2]
[356122740,1741917032585,-228.78707925,0.00011098,2]
[356122811,1741917298988,-230.58719251,0.00010498,2]
[356122812,1741917299021,-3739.41280749,0.00010604,2]
[356122816,1741917897861,-991.84003198,0.00010289,2]
[356122817,1741918002276,-300.0,0.00010464,2]
[356122818,1741918023747,-300.0,0.00010464,2]
[356122819,1741918023781,-1658.475202,0.00010465,2]
[356122820,1741918023814,-9608.752387,0.00010465,2]
[356122821,1741918058772,-300.0,0.00010465,2]
[356122827,1741918210235,-250.0,0.00010711,2]
[356122828,1741918224267,-185.22,0.00010959,2]
[356122829,1741918224300,-154.35,0.00010959,2]
[356122830,1741918224337,-771.77,0.00010959,2]
[356122941,1741919214112,-220.79675558,0.00010238,2]
[356122942,1741919323095,300.0,0.0001,2]
[356122943,1741919380619,2109.13897203,0.0001001,2]
[356123055,1741919438019,-205.55502106,0.00010136,2]
[356123056,1741919438029,-300.0,0.00010445,2]
[356123057,1741919438039,-1649.84497894,0.00010446,2]
[356123078,1741919663095,14187.86762422,0.0001001,2]
[356123079,1741919663128,20000.0,0.0001001,2]
[356123080,1741919663160,20000.0,0.0001001,2]
[356123081,1741919663396,14000.0,0.0001001,2]
[356123082,1741919663425,55327.13237578,0.0001001,2]
[356123083,1741919684464,370.94019604,0.0001,2]
[356123084,1741919695593,360.0,0.0001,2]
[356123085,1741919750946,185334.0,0.0001001,2]
[356123086,1741919822018,307715.0,0.0001001,2]
[356123087,1741919827182,178.14423088,0.0001,2]
[356123088,1741919973402,252447.0,0.0001001,2]
[356123090,1741919977953,2494.2449048,0.0001001,2]
[356123091,1741920108672,10000.0,9.845e-05,2]
[356123092,1741920114430,401.7028678,9.771e-05,2]
[356123093,1741920159409,5000.0,0.0001001,2]
[356123094,1741920366482,331.25283947,0.0001001,2]
[356123095,1741920392386,-215.54100286,0.00010058,2]
[356123096,1741920408183,1658.475202,9.907e-05,2]
[356123097,1741920505619,1129.7858607,9.881e-05,2]
[356123101,1741920625806,250.0,9.786e-05,2]
[356123140,1741920632049,-300.0,0.00010057,2]
[356123142,1741920632065,-589.87526814,0.00010058,2]
[356123147,1741920632102,-24094.583729,0.00010058,2]
[356123149,1741920632112,-807.1256024,0.00010099,2]
[356123151,1741920632122,-153.00901896,0.0001044,2]
[356123153,1741920632132,-151.0,0.00010446,2]
[356123155,1741920632141,-988.62394828,0.0001078,2]
[356123157,1741920632151,-834.90316669,0.00010799,2]
[356123159,1741920632161,-2062.94904028,0.000108,7]
[356123161,1741920632171,-2097.0592061,0.00010957,2]
[356123163,1741920632180,-151.0,0.00010958,2]
[356123165,1741920632190,-151.0,0.00010959,2]
[356123166,1741920632199,-151.0,0.00010959,2]
[356123167,1741920632209,-151.0,0.00010959,2]
[356123168,1741920632219,-258.85,0.00010959,2]
[356123169,1741920632229,-215.71,0.00010959,2]
[356123170,1741920632239,-179.75,0.00010959,2]
[356123171,1741920632249,-1083.22192446,0.00010959,2]
[356123206,1741920643075,-500.0,0.00010956,2]
[356123207,1741920643084,-500.0,0.00010956,2]
[356123208,1741920643094,-21.64926611,0.00010956,2]
[356123391,1741920773742,1694.53935691,9.941e-05,2]
[356123392,1741920850942,198.53581901,9.941e-05,2]
[356123393,1741920890018,12265.0,9.4e-05,2]
[356123394,1741920964693,198.53581901,9.941e-05,2]
[356123395,1741921018064,3460.212362,9.969e-05,2]
[356123396,1741921131963,8506.0,0.00014001,30]
[356123397,1741921293896,24900.0,9.958e-05,2]
[356123398,1741921373370,610.68,0.00014001,30]
[356123399,1741921519153,10000.0,9.969e-05,2]
[356123400,1741921679739,250.0,9.976e-05,2]
[356123401,1741921731661,6975.6198875,9.976e-05,2]
[356123462,1741921838001,-368.88408501,0.00010859,2]
[356123463,1741921838011,-300.0,0.00010957,2]
[356123464,1741921838022,-245.4532037,0.00010958,2]
[356123465,1741921838032,-325.69732978,0.00010958,2]
[356123466,1741921838041,-500.0,0.00010958,2]
[356123467,1741921838051,-500.0,0.00010958,2]
[356123468,1741921838061,-197.63866604,0.00010958,2]
[356123469,1741921838071,-151.0,0.00010959,2]
[356123470,1741921838081,-151.0,0.00010959,2]
[356123471,1741921838091,-898.8,0.00010959,2]
[356123472,1741921838101,-203.89,0.00010959,2]